bitfinex/quotes_ETHUSD_20251012
["timestamp","ask_amount","ask_price","bid_price","bid_amount"]
[1760230916239,18.26659661,3716.5,3716.4,4.92]
[1760230916754,22.03277461,3716.5,3716.4,4.92]
[1760230917054,16.85781596,3716.5,3716.4,4.92]
[1760230917220,16.85781596,3716.5,3716.4,6.15]
[1760230917846,22.10048896,3716.5,3716.4,6.15]
[1760230918219,23.47165584,3716.5,3716.4,6.15]
[1760230918416,6.02518808,3716.5,3716.4,6.15]
[1760230918642,6.07391461,3716.5,3716.4,7.38]
[1760230918850,25.80548261,3716.5,3716.4,7.38]
[1760230919033,25.39583549,3716.5,3716.4,7.38]
[1760230919555,25.04254208,3716.5,3716.4,7.38]
[1760230919851,36.06157708,3716.5,3716.4,7.38]
[1760230920052,36.06157708,3716.5,3716.4,8.61]
[1760230920558,14.74404047,3716.5,3716.4,8.61]
[1760230920743,5.385735,3717.5,3716.4,10.0862]
[1760230920916,0.001,3717.6,3716.4,10.0862]
[1760230921344,0.001,3717.6,3716.5,0.4517]
[1760230921658,1.92,3717.4,3716.4,11.3162]
[1760230921845,4.60998549,3717.5,3716.4,11.3162]
[1760230922047,4.60998549,3717.5,3716.4,9.84]
[1760230922048,1.92,3716.8,3716.4,9.84]
[1760230922358,4.61020632,3717.2,3716.4,9.84]
[1760230922555,1.92,3717.0,3716.4,9.84]
[1760230922770,1.92,3716.5,3716.4,9.84]
[1760230922982,18.64991061,3716.5,3716.4,11.07]
[1760230923184,29.80060361,3716.5,3716.4,11.07]
[1760230923334,30.04602361,3716.5,3716.4,11.07]
[1760230923670,30.78359049,3716.5,3716.4,11.07]
[1760230924380,36.09487708,3716.5,3716.4,12.3]
[1760230925377,12.79584461,3716.5,3716.4,12.3]
[1760230925538,13.21795709,3716.5,3716.4,13.53]
[1760230926079,0.4663,3717.3,3716.4,13.53]
[1760230926284,6.318796,3717.2,3716.4,15.4982]
[1760230926766,0.4663,3717.8,3716.4,15.4982]
[1760230926953,2.68986477,3719.1,3716.5,0.4517]
[1760230926954,0.1344,3716.6,3716.5,0.4517]
[1760230927158,0.1344,3717.0,3716.7,2.69051832]
[1760230927360,0.1344,3717.0,3716.9,2.69041405]
[1760230927553,1.08082314,3717.9,3716.8,0.31422183]
[1760230927767,0.1344,3716.8,3716.5,2.69070361]
[1760230927979,0.1344,3716.8,3716.4,16.7282]
[1760230927980,10.660154,3717.3,3716.4,16.7282]
[1760230928186,1.92,3717.4,3716.4,14.76]
[1760230928481,7.226014,3716.9,3716.4,15.99]
[1760230928683,1.92,3717.0,3716.4,15.99]
[1760230928684,11.40961,3716.7,3716.4,15.99]
[1760230928887,1.92,3716.5,3716.4,15.99]
[1760230929181,11.205549,3716.5,3716.4,15.99]
[1760230929387,4.149234,3716.5,3716.4,15.99]
[1760230929582,1.92,3716.5,3716.4,15.99]
[1760230929782,1.92,3716.5,3716.4,17.22]
[1760230929987,1.92,3716.5,3716.4,19.5572]
[1760230930871,1.92,3716.5,3716.4,17.22]
[1760230931282,1.92,3716.5,3716.4,18.45]
[1760230931466,0.4635,3717.8,3716.4,18.9017]
[1760230931667,2.040409,3717.5,3716.4,18.9017]
[1760230931861,0.4303,3718.5,3716.5,3.14240361]
[1760230932059,0.4303,3718.5,3716.6,2.28244036]
[1760230932260,2.68935136,3718.4,3717.0,2.69027646]
[1760230932461,0.001,3718.5,3716.7,0.4517]
[1760230932759,0.001,3718.5,3717.2,2.69013119]
[1760230932959,0.001,3718.5,3717.3,2.69010319]
[1760230933260,1.92,3718.4,3717.4,0.26901032]
[1760230933475,0.001,3718.5,3717.4,0.26901032]
[1760230933797,0.001,3718.5,3717.5,0.4517]
[1760230933960,0.001,3718.5,3717.5,3.14167982]
[1760230934674,0.001,3718.5,3717.4,1.49901032]
[1760230934871,0.001,3718.5,3717.5,3.77527982]
[1760230935073,0.001,3718.5,3717.5,4.57172011]
[1760230935400,0.001,3718.5,3717.5,5.80172011]
[1760230936190,0.001,3718.5,3717.5,2.02644029]
[1760230936367,1.92,3718.3,3717.5,1.23]
[1760230936598,1.92,3718.1,3717.5,1.23]
[1760230936765,1.92,3717.9,3717.5,1.23]
[1760230936963,2.176161,3717.6,3717.5,2.46]
[1760230937163,12.27716546,3717.6,3717.5,2.46]
[1760230937485,11.51961346,3717.6,3717.5,2.46]
[1760230937661,12.53748693,3717.6,3717.5,2.46]
[1760230938301,17.09727001,3717.6,3717.5,2.46]
[1760230938605,16.83553001,3717.6,3717.5,3.69]
[1760230938778,17.18882342,3717.6,3717.5,3.69]
[1760230939093,17.4969398,3717.6,3717.5,3.69]
[1760230939295,36.71639072,3717.6,3717.5,3.69]
[1760230939504,5.37797982,3717.5,3717.4,1.23]
[1760230939659,36.84986308,3717.5,3717.4,1.23]
[1760230939859,36.84986308,3717.5,3717.4,2.46]
[1760230940396,36.84986308,3717.5,3716.6,1.23]
[1760230940397,4.35594,3716.7,3716.6,1.23]
[1760230940571,9.23449439,3717.5,3716.6,2.45747572]
[1760230940779,6.567514,3717.4,3716.6,2.45747572]
[1760230941098,2.3462,3717.4,3716.6,1.23]
[1760230941277,1.92,3717.0,3716.6,2.46]
[1760230941476,4.61055882,3716.7,3716.6,2.46]
[1760230941688,7.55975882,3716.7,3716.6,2.46]
[1760230942399,21.11870629,3716.7,3716.6,2.46]
[1760230942700,14.60593429,3716.7,3716.6,3.69]
[1760230943014,15.23953429,3716.7,3716.6,3.69]
[1760230943374,36.05463229,3716.7,3716.6,3.69]
[1760230944094,36.05463229,3716.7,3716.6,4.92]
[1760230944319,36.05463229,3716.7,3716.2,3.69]
[1760230944320,0.6336,3716.3,3716.0,0.002]
[1760230944460,35.24459324,3716.1,3716.0,0.002]
[1760230944668,35.62886671,3716.1,3716.0,0.002]
[1760230944984,36.05506671,3716.1,3716.0,0.002]
[1760230945299,32.3462,3716.1,3716.0,1.232]
[1760230945596,7.807559,3716.1,3716.0,1.232]
[1760230946000,8.867359,3716.1,3716.0,1.232]
[1760230946222,11.9805146,3716.1,3716.0,1.232]
[1760230946374,5.04890536,3716.1,3716.0,1.232]
[1760230946699,6.32565036,3716.1,3716.0,2.462]
[1760230947001,9.0166436,3716.1,3716.0,2.462]
[1760230947613,8.9200886,3716.1,3716.0,2.462]
[1760230947769,9.3462886,3716.1,3716.0,2.462]
[1760230947970,9.3462886,3716.1,3716.0,3.692]
[1760230948171,10.36416207,3716.1,3716.0,3.692]
[1760230948370,10.71745548,3716.1,3716.0,3.692]
[1760230948571,28.90549248,3716.1,3716.0,3.692]
[1760230949010,28.16874248,3716.1,3716.0,3.692]
[1760230949469,33.76985412,3716.1,3716.0,4.922]
[1760230950429,2.69128293,3715.7,3714.4,0.002]
[1760230950723,35.24517268,3715.3,3714.4,0.002]
[1760230950890,35.24524513,3715.2,3715.1,1e-08]
[1760230951083,35.6295186,3715.2,3715.1,1e-08]
[1760230951420,36.0537186,3715.2,3715.1,1e-08]
[1760230951919,36.40701201,3715.2,3715.1,1e-08]
[1760230952118,2.69179004,3715.0,3714.9,1e-08]
[1760230952418,36.2910733,3715.0,3714.9,1e-08]
[1760230952619,36.7152733,3715.0,3714.9,1e-08]
[1760230953501,6.36197989,3715.0,3714.9,1e-08]
[1760230953826,2.69186249,3714.9,3714.4,0.002]
[1760230954124,35.24582485,3714.4,3714.3,1e-08]
[1760230954282,35.90723464,3714.4,3714.3,1e-08]
[1760230954481,36.29150811,3714.4,3714.3,1e-08]
[1760230954682,36.71570811,3714.4,3714.3,1e-08]
[1760230954878,36.71570811,3714.4,3714.3,1.23000001]
[1760230955100,5.434294,3714.4,3714.3,1.23000001]
[1760230955300,8.51079232,3714.4,3714.3,1.23000001]
[1760230955620,0.4242,3714.8,3714.3,1.23000001]
[1760230955828,3.848137,3714.7,3714.3,1.23000001]
[1760230955999,4.282134,3714.6,3714.3,1.23000001]
[1760230956201,2.241828,3714.7,3714.3,2.46000001]
[1760230956437,0.4242,3714.6,3714.4,0.246]
[1760230956620,19.10680385,3714.4,3714.3,2.46000001]
[1760230956939,5.399308,3714.4,3714.3,2.46200001]
[1760230957099,1.92,3714.4,3714.3,2.46200001]
[1760230957299,6.73803,3714.4,3714.3,2.46200001]
[1760230957496,10.48805485,3714.4,3714.3,3.69200001]
[1760230957835,23.0448828,3714.0,3713.9,0.00161296]
[1760230958035,22.32853227,3714.0,3713.9,0.00161296]
[1760230958215,23.10602568,3714.0,3713.9,0.00161296]
[1760230958400,20.41351088,3714.0,3713.9,0.00161296]
[1760230958607,1.92,3714.0,3713.9,0.00161296]
[1760230958810,1.92,3713.9,3713.5,0.002]
[1760230959011,1.92,3713.9,3712.6,1.23]
[1760230959012,0.6336,3713.4,3712.6,1.23]
[1760230959211,2.69326952,3713.0,3712.6,1.23]
[1760230959413,1.92,3712.7,3712.6,1.23]
[1760230959637,7.025494,3712.7,3712.6,1.23]
[1760230959807,1.92,3712.7,3712.6,1.23]
[1760230960203,4.759072,3712.7,3712.6,1.23]
[1760230960637,4.515384,3712.7,3712.6,2.46]
[1760230960952,1.92,3712.7,3712.6,2.706]
[1760230961615,12.30608,3712.7,3712.6,2.706]
[1760230961823,11.281473,3712.7,3712.6,2.706]
[1760230962024,13.887258,3712.7,3712.6,3.69]
[1760230962219,13.626532,3712.7,3712.6,3.69]
[1760230962422,11.138516,3712.7,3712.6,3.69]
[1760230962654,7.320529,3712.7,3712.6,3.69]
[1760230962850,1.92,3712.7,3712.6,3.69]
[1760230963055,4.14676,3712.7,3712.6,3.69]
[1760230963251,1.92,3712.7,3712.6,4.059]
[1760230963453,1.92,3712.7,3712.6,5.289]
[1760230964467,3.943349,3712.7,3712.6,4.92]
[1760230964773,4.984367,3712.7,3712.6,4.92]
[1760230964979,4.984367,3712.7,3712.6,6.15]
[1760230965881,1.92,3712.7,3712.6,6.15]
[1760230966066,1.92,3712.7,3712.6,6.765]
[1760230966293,1.92,3712.7,3712.6,7.995]
[1760230967076,4.053236,3712.7,3712.6,7.38]
[1760230967640,4.053236,3712.7,3712.6,8.61]
[1760230967872,4.554906,3712.7,3712.6,8.61]
[1760230968074,1.92,3712.7,3712.6,8.61]
[1760230968273,12.508488,3713.9,3712.6,9.0407]
[1760230968462,0.6336,3714.0,3712.7,0.90407]
[1760230968669,1.92,3713.6,3712.7,0.90407]
[1760230968983,13.604258,3714.1,3712.7,2.13407]
[1760230969195,10.292233,3713.9,3712.7,4.8274897]
[1760230969477,1.92,3714.0,3712.8,1.38681897]
[1760230969647,1.92,3713.6,3712.8,1.38681897]
[1760230969845,0.2262,3714.3,3712.8,1.38681897]
[1760230969846,13.49097,3714.1,3712.8,1.38681897]
[1760230970070,0.1344,3712.8,3712.7,1.23]
[1760230970496,0.1344,3712.8,3712.7,2.46]
[1760230971907,30.088664,3712.8,3712.7,2.46]
[1760230972057,30.088664,3712.8,3712.7,3.69]
[1760230972058,8.872361,3712.8,3712.7,3.69]
[1760230972258,9.292361,3712.8,3712.7,3.69]
[1760230972982,0.6336,3714.0,3712.7,4.92]
[1760230973314,21.908982,3713.8,3712.7,3.69]
[1760230973597,9.950369,3713.2,3712.7,4.92]
[1760230973897,0.42,3713.7,3712.7,4.92]
[1760230974061,0.57949341,3714.3,3712.7,4.92]
[1760230974402,0.6462,3714.3,3713.0,2.69317292]
[1760230974571,1.92,3714.6,3713.1,3.23178283]
[1760230974906,7.566525,3714.8,3713.2,0.4612]
[1760230975114,2.97146,3714.8,3713.2,0.4612]
[1760230975406,15.0066,3715.2,3713.8,2.69265776]
[1760230975568,7.667242,3715.0,3713.8,2.69265776]
[1760230975766,7.667242,3715.0,3713.7,0.4612]
[1760230975767,16.222368,3714.8,3713.9,0.58466553]
[1760230975989,2.299306,3714.7,3713.6,0.4612]
[1760230976173,7.490555,3715.1,3713.6,3.15398942]
[1760230976392,7.490555,3715.1,3713.6,3.153997]
[1760230976576,2.69200742,3714.7,3713.5,1.23]
[1760230976774,0.6336,3714.5,3713.5,1.23]
[1760230976963,1.31331843,3715.7,3713.5,1.23]
[1760230976964,1.92,3714.3,3713.5,1.23]
[1760230977164,2.423406,3714.8,3713.5,1.23]
[1760230977365,1.92,3714.6,3713.5,1.23]
[1760230977618,1.92,3713.8,3713.5,2.46]
[1760230977929,4.902,3713.6,3713.5,2.46]
[1760230978135,2.142288,3714.3,3713.5,2.46]
[1760230978312,1.92,3714.3,3713.5,2.46]
[1760230978515,8.942829,3714.2,3713.5,2.46]
[1760230978719,2.369915,3714.0,3713.5,2.46]
[1760230978921,0.42238132,3714.6,3713.5,3.936]
[1760230979233,1.92,3714.0,3713.5,3.936]
[1760230979438,1.92,3714.5,3713.5,3.936]
[1760230979739,1.92,3714.4,3713.5,3.936]
[1760230979935,1.92,3714.2,3713.5,3.936]
[1760230980230,1.92,3714.2,3713.6,0.7090213]
[1760230980531,1.92,3715.0,3713.7,3.1539179]
[1760230980703,1.92,3714.6,3713.5,4.92]
[1760230980899,3.946034,3714.4,3713.5,5.412]
[1760230981100,2.69165281,3715.2,3713.7,2.69270752]
[1760230981101,1.92,3715.1,3713.7,2.69270752]
[1760230981289,1.92,3714.7,3713.5,5.8732]
[1760230981496,1.92,3714.5,3713.5,4.92]
[1760230981738,32.69280482,3713.6,3713.5,2.15201896]
[1760230982033,35.24676743,3713.1,3713.0,0.68384861]
[1760230982236,35.96016765,3713.1,3713.0,0.68384861]
[1760230982531,36.38706765,3713.1,3713.0,0.68384861]
[1760230983034,36.6845582,3713.1,3713.0,0.68384861]
[1760230983192,36.6845582,3713.1,3713.0,1.91384861]
[1760230983593,33.32698504,3712.8,3712.7,4.92]
[1760230983825,30.55516204,3712.8,3712.7,4.92]
[1760230984029,31.34216885,3712.8,3712.7,4.92]
[1760230984240,31.34216885,3712.8,3712.1,0.002]
[1760230984241,33.32785584,3711.6,3711.5,13.46127408]
[1760230984398,36.13845606,3711.6,3711.5,2.1036454]
[1760230984600,35.78516265,3711.6,3711.5,2.1036454]
[1760230984817,36.43594661,3711.6,3711.5,2.1036454]
[1760230985023,36.85867085,3711.6,3711.5,2.1036454]
[1760230985635,32.5536,3711.5,3710.5,0.002]
[1760230985809,33.587142,3711.5,3710.5,0.002]
[1760230986014,33.764342,3711.5,3710.5,0.002]
[1760230986543,2.5536,3711.3,3709.9,1.166]
[1760230986846,29.057467,3710.0,3709.9,1.166]
[1760230987146,29.83671559,3710.0,3709.9,1.166]
[1760230987446,32.88542678,3710.0,3709.9,1.166]
[1760230987606,32.88542678,3710.0,3708.5,1.23]
[1760230987607,29.75417543,3709.6,3708.5,1.23]
[1760230987942,33.00066416,3709.3,3709.2,3.1e-07]
[1760230988109,33.73671561,3709.3,3709.2,3.1e-07]
[1760230988311,33.83701561,3709.3,3709.2,3.1e-07]
[1760230988511,32.9337547,3709.3,3709.2,3.1e-07]
[1760230989456,3.9394288,3709.3,3709.2,3.1e-07]
[1760230989761,29.46152504,3709.3,3709.2,3.1e-07]
[1760230989962,29.81481845,3709.3,3709.2,3.1e-07]
[1760230990261,26.424867,3709.1,3708.5,1.23]
[1760230990409,31.67490231,3708.6,3708.5,1.23]
[1760230990612,24.86189845,3708.6,3708.5,1.23]
[1760230990919,29.46152504,3708.6,3708.5,1.23]
[1760230991119,5.605062,3708.6,3708.5,1.23]
[1760230991520,7.525062,3708.6,3708.5,1.23]
[1760230991724,3.586155,3709.1,3708.5,2.46]
[1760230991957,5.541396,3709.0,3708.6,0.246]
[1760230992140,1.92,3709.3,3708.6,0.246]
[1760230992313,0.1003,3709.3,3708.6,0.246]
[1760230992685,9.58321,3709.2,3708.6,0.246]
[1760230992828,1.92,3708.9,3708.6,0.246]
[1760230993029,3.015751,3709.5,3708.7,0.2706]
[1760230993257,6.504262,3709.3,3708.7,0.2706]
[1760230993782,2.589198,3710.2,3708.7,0.2706]
[1760230993934,1.92,3709.7,3708.7,0.2706]
[1760230994271,5.909319,3710.2,3709.1,0.002]
[1760230994558,3.02577,3710.0,3709.1,0.002]
[1760230994768,5.918501,3709.8,3709.1,0.002]
[1760230994927,0.6336,3710.2,3709.1,0.31814055]
[1760230995128,0.4228547,3710.4,3709.1,0.31814055]
[1760230995334,13.053665,3710.8,3709.2,2.69599913]
[1760230995641,0.42283128,3710.7,3709.3,0.4612]
[1760230995962,7.362731,3711.8,3709.3,0.4612]
[1760230996129,6.860731,3711.8,3710.4,2.69507846]
[1760230996329,0.38275804,3712.2,3709.4,0.3475328]
[1760230996330,0.38275804,3712.2,3710.5,0.4612]
[1760230996525,0.099,3712.6,3710.5,0.4612]
[1760230996526,12.085982,3712.5,3710.5,0.4612]
[1760230996740,12.085982,3712.5,3709.7,0.4612]
[1760230996741,26.424867,3711.8,3709.7,0.4612]
[1760230996964,1.92,3711.5,3709.7,0.4612]
[1760230997147,1.92,3711.1,3710.0,2.69535062]
[1760230997348,0.6336,3711.6,3710.1,0.53908566]
[1760230997529,1.92,3711.2,3710.1,0.53908566]
[1760230997732,7.348204,3710.9,3709.7,0.4612]
[1760230997930,1.92,3710.8,3710.1,2.69534281]
[1760230998166,1.92,3710.6,3709.3,1.23]
[1760230998347,1.92,3710.4,3709.3,3.92590517]
[1760230998549,0.48175804,3710.7,3709.3,1.23]
[1760230998749,6.308381,3710.4,3709.4,0.5157992]
[1760230998951,0.48175804,3710.7,3709.5,0.4612]
[1760230998952,0.38275804,3710.7,3709.5,0.4612]
[1760230999153,0.38275804,3710.7,3709.6,2.69570843]
[1760230999337,0.42275611,3711.4,3710.8,2.69482994]
[1760230999539,1.92,3711.8,3710.4,3.1563165]
[1760230999769,1.92,3711.6,3709.7,1.6912]
[1760231000065,1.92,3711.4,3709.9,2.69549044]
[1760231000274,1.92,3711.4,3710.6,2.69493181]
[1760231000478,1.92,3711.6,3710.2,0.227]
[1760231000681,0.38275804,3711.8,3710.3,0.4612]
[1760231000855,0.38375804,3712.8,3711.4,2.69433606]
[1760231001173,0.6336,3712.6,3711.5,0.26943361]
[1760231001384,1.92,3712.4,3711.0,3.15584107]
[1760231001544,1.92,3712.0,3711.0,0.4612]
[1760231001746,0.38275804,3712.4,3711.2,2.69454173]
[1760231001947,4.313661,3712.3,3711.2,2.69454173]
[1760231002150,0.001,3712.8,3711.3,0.4612]
[1760231002542,1.92,3712.6,3712.0,2.69391765]
[1760231002768,5.225594,3712.7,3711.7,2.69414933]
[1760231003043,1.92,3712.2,3710.7,0.4634]
[1760231003255,3.491513,3712.3,3710.7,0.4634]
[1760231003256,1.92,3712.3,3711.5,2.69430898]
[1760231003564,1.92,3712.4,3711.3,0.4634]
[1760231003763,0.38275804,3713.0,3711.7,2.6941665]
[1760231004076,0.001,3713.2,3712.0,2.69395866]
[1760231004280,0.001,3713.2,3711.8,0.73281665]
[1760231004579,0.1344,3712.0,3711.9,2.69403809]
[1760231004780,0.001,3713.2,3711.9,3.15743809]
[1760231004955,0.1344,3712.2,3712.1,2.69389294]
[1760231005156,0.001,3713.2,3712.7,2.69345759]
[1760231005684,0.001,3713.2,3713.1,2.69316743]
[1760231005983,0.001,3713.2,3712.8,1.00210142]
[1760231006153,0.001,3713.2,3712.8,3.15677767]
[1760231006484,0.001,3713.2,3712.8,0.4634]
[1760231006659,0.001,3713.2,3712.1,0.6823]
[1760231006862,0.001,3713.2,3712.9,2.69327349]
[1760231007180,0.001,3713.2,3712.2,0.4634]
[1760231007699,0.001,3713.2,3712.3,2.6937283]
[1760231007898,0.001,3713.2,3712.3,0.33760283]
[1760231008267,0.001,3713.2,3712.5,2.69358983]
[1760231008466,0.001,3713.2,3712.4,0.4634]
[1760231008710,0.001,3713.2,3712.8,1.23]
[1760231008923,1.92,3713.0,3712.8,1.23]
[1760231009219,0.38275804,3713.0,3712.8,1.23]
[1760231009370,10.28055204,3712.9,3712.8,1.23]
[1760231009569,7.85931604,3712.9,3712.8,1.23]
[1760231009770,11.18622854,3712.9,3712.8,1.23]
[1760231010000,32.15353754,3712.9,3712.8,1.23]
[1760231010389,28.10000254,3712.9,3712.8,1.23]
[1760231010589,16.27087354,3712.9,3712.8,1.23]
[1760231010979,32.15353754,3712.9,3712.8,1.23]
[1760231011386,32.15353754,3712.9,3712.8,2.46]
[1760231011610,30.22904954,3712.9,3712.8,2.46]
[1760231011882,6.94561,3712.9,3712.8,2.46]
[1760231012092,5.935023,3712.9,3712.8,2.46]
[1760231012294,1.92,3712.9,3712.8,2.46]
[1760231012508,6.32612,3712.9,3712.8,2.46]
[1760231012721,5.79982,3712.9,3712.8,3.69]
[1760231013023,5.888892,3712.9,3712.8,3.69]
[1760231013591,7.00425004,3712.9,3712.8,3.69]
[1760231014020,24.93229854,3712.9,3712.8,4.92]
[1760231014225,22.23898604,3712.9,3712.8,4.92]
[1760231014399,5.636475,3712.9,3712.8,4.92]
[1760231014592,5.002875,3712.9,3712.8,4.92]
[1760231014792,1.92,3712.9,3712.8,4.92]
[1760231015013,6.827663,3712.9,3712.8,4.92]
[1760231015261,5.143663,3712.9,3712.8,4.92]
[1760231015430,3.968001,3712.9,3712.8,6.15]
[1760231015721,5.377902,3712.9,3712.8,6.15]
[1760231016123,5.668192,3712.9,3712.8,6.15]
[1760231016326,1.92,3712.9,3712.8,6.15]
[1760231016628,4.311745,3712.9,3712.8,6.15]
[1760231016821,4.311745,3712.9,3712.8,7.38]
[1760231017025,7.48681554,3712.9,3712.8,7.38]
[1760231017221,19.96300354,3712.9,3712.8,7.38]
[1760231017824,20.59660354,3712.9,3712.8,7.38]
[1760231018325,18.32177454,3712.9,3712.8,8.61]
[1760231019029,18.32177454,3712.9,3712.8,5.91145808]
[1760231019231,31.73101354,3712.9,3712.8,5.91145808]
[1760231019628,31.73101354,3712.9,3712.8,7.14145808]
[1760231020234,27.19758504,3712.9,3712.8,7.14145808]
[1760231020432,16.448997,3712.9,3712.8,7.14145808]
[1760231021137,31.3349095,3712.9,3712.8,8.37145808]
[1760231021333,31.71766754,3712.9,3712.8,8.37145808]
[1760231021535,26.39183554,3712.9,3712.8,8.37145808]
[1760231021740,23.06492304,3712.9,3712.8,8.37145808]
[1760231021911,0.001,3713.2,3712.8,8.37145808]
[1760231022118,0.001,3713.2,3712.9,0.4281]
[1760231022714,0.001,3713.2,3712.8,10.43860389]
[1760231023244,0.001,3713.2,3712.9,0.4281]
[1760231023444,0.001,3713.2,3712.8,10.43860389]
[1760231023653,0.001,3713.2,3712.8,10.83145808]
[1760231023834,0.38275804,3713.1,3712.8,10.83145808]
[1760231024038,1.92,3712.9,3712.8,10.83145808]
[1760231024225,10.190792,3712.9,3712.8,10.83145808]
[1760231024548,7.84130404,3712.9,3712.8,10.83145808]
[1760231024708,7.56660604,3712.9,3712.8,10.83145808]
[1760231024903,9.32073604,3712.9,3712.8,12.06145808]
[1760231025120,2.30275804,3712.9,3712.8,12.06145808]
[1760231025324,0.001,3713.2,3712.8,13.69570389]
[1760231025646,0.001,3713.2,3713.1,2.69316743]
[1760231025809,0.001,3713.6,3713.5,2.69287733]
[1760231026005,0.38275804,3715.5,3713.2,0.4281]
[1760231026212,0.38275804,3715.5,3713.9,2.6925873]
[1760231026535,0.38275804,3715.5,3713.9,2.96184603]
[1760231026734,0.38275804,3715.5,3713.9,3.38994603]
[1760231027424,0.38275804,3715.5,3713.9,0.4281]
[1760231027425,0.38275804,3714.9,3713.9,0.4281]
[1760231027857,0.38275804,3715.4,3713.9,4.3506873]
[1760231028153,0.6336,3715.3,3713.9,1.6581]
[1760231028335,0.6336,3715.3,3713.9,4.3506873]
[1760231029164,0.38275804,3715.4,3713.9,4.3506873]
[1760231029375,0.001,3717.6,3714.3,3.32589733]
[1760231029551,0.001,3717.6,3714.0,0.6336]
[1760231029552,0.42216969,3716.7,3715.0,0.6336]
[1760231029759,0.001,3717.6,3715.3,2.69157268]
[1760231029954,0.001,3717.6,3716.3,2.69083809]
[1760231030303,0.001,3717.6,3715.9,0.6336]
[1760231030442,0.001,3717.6,3716.5,2.69063766]
[1760231030627,0.38375804,3717.5,3716.5,0.26906377]
[1760231030829,0.38375804,3717.5,3716.6,0.4281]
[1760231031690,0.001,3717.5,3716.6,0.4281]
[1760231032186,0.38275804,3717.4,3716.6,1.6581]
[1760231032658,0.001,3717.5,3716.7,0.4281]
[1760231033092,0.001,3717.5,3716.7,3.11865488]
[1760231033295,0.001,3717.5,3717.4,2.69005218]
[1760231033499,0.001,3717.5,3716.7,0.4281]
[1760231033500,0.001,3717.5,3717.3,2.69011506]
[1760231033676,0.1354,3717.5,3717.4,2.69005218]
[1760231034202,0.1354,3717.5,3717.4,0.4346]
[1760231034382,0.1354,3717.5,3717.4,3.12465218]
[1760231034703,0.001,3717.5,3717.4,3.4371174]
[1760231034878,0.001,3717.5,3717.4,1.97706522]
[1760231035198,0.001,3717.5,3717.4,4.6671174]
[1760231035901,0.001,3717.5,3717.4,1.23]
[1760231036103,0.001,3717.5,3717.4,2.46]
[1760231036600,0.001,3717.5,3717.4,2.8946]
[1760231036801,0.001,3717.5,3717.4,2.46]
[1760231037101,3.589937,3717.5,3717.4,2.46]
[1760231037303,5.228696,3717.5,3717.4,2.46]
[1760231037601,1.921,3717.5,3717.4,3.69]
[1760231037769,1.921,3717.5,3717.4,4.4936]
[1760231037972,1.921,3717.5,3717.4,4.1246]
[1760231038168,0.1354,3717.5,3717.4,6.81465218]
[1760231038400,0.001,3717.6,3717.5,2.68997982]
[1760231038606,0.001,3717.9,3717.8,2.68976276]
[1760231038810,0.001,3717.9,3717.6,3.12449197]
[1760231039103,0.001,3717.9,3717.7,1.2390492]
[1760231039312,0.001,3717.9,3717.8,2.68976276]
[1760231039499,0.001,3717.9,3717.8,3.12436276]
[1760231039695,0.001,3717.9,3717.8,0.4346]
[1760231039899,0.001,3717.9,3717.8,3.12436276]
[1760231040218,0.001,3717.9,3717.8,0.4346]
[1760231040375,0.001,3717.9,3717.8,4.52082276]
[1760231040578,0.001,3717.9,3717.8,1.6646]
[1760231040809,0.001,3717.9,3717.8,4.35436276]
[1760231041514,0.001,3717.9,3717.8,1.6646]
[1760231041726,0.001,3717.9,3717.8,5.58436276]
[1760231043013,0.001,3717.9,3717.8,6.81436276]
[1760231043189,0.001,3717.9,3717.8,8.52138843]
[1760231044500,0.001,3717.9,3717.8,9.75138843]
[1760231045819,0.001,3717.9,3717.8,10.98138843]
[1760231047127,0.001,3717.9,3717.8,10.34778843]
[1760231047326,0.001,3717.9,3717.8,11.57778843]
[1760231047620,0.001,3717.9,3717.8,10.50436276]
[1760231047984,0.001,3717.9,3717.8,7.8146]
[1760231048624,0.001,3717.9,3717.8,8.61]
[1760231048924,10.968327,3717.9,3717.8,8.61]
[1760231049125,1.921,3717.9,3717.8,8.61]
[1760231049341,10.598695,3717.9,3717.8,8.61]
[1760231049497,10.33937741,3717.9,3717.8,8.61]
[1760231049694,9.90184441,3717.9,3717.8,8.61]
[1760231049935,13.14390341,3717.9,3717.8,8.61]
[1760231050233,10.40658377,3717.9,3717.8,9.84]
[1760231050418,9.98462841,3717.9,3717.8,9.84]
[1760231050826,4.70969041,3717.9,3717.8,9.84]
[1760231051129,24.65517441,3717.9,3717.8,9.84]
[1760231051335,25.67153245,3717.9,3717.8,5.03333684]
[1760231051627,27.28480208,3717.9,3717.8,0.87339178]
[1760231051837,14.03530882,3717.5,3717.4,3.09831703]
[1760231052001,33.83089555,3717.5,3717.4,0.40320461]
[1760231052927,34.18418896,3717.5,3717.4,1.63320461]
[1760231053503,33.83089555,3717.5,3717.4,1e-08]
[1760231053711,3.32408643,3716.8,3716.7,1.23]
[1760231053892,5.62684447,3716.8,3716.7,1.23]
[1760231054098,32.15411147,3716.8,3716.7,1.23]
[1760231054312,32.15411147,3716.8,3716.7,2.46]
[1760231054512,7.79958104,3716.8,3716.7,2.46]
[1760231054709,2.200197,3717.3,3716.7,2.829]
[1760231054909,1.92,3717.5,3716.7,2.46]